bitfinex-derivatives/quotes_SOLF0:USTF0_20250113
["timestamp","ask_amount","ask_price","bid_price","bid_amount"]
[1736794117261,2.8441,175.88,175.81,2.8452]
[1736794117464,2.8441,175.88,175.8,22.3757194]
[1736794117465,2.8441,175.88,175.82,6.38]
[1736794117866,3.3797,175.94,175.82,6.38]
[1736794118565,2.844,175.89,175.82,6.38]
[1736794118764,3.3797,175.94,175.82,6.38]
[1736794118967,2.8438,175.9,175.82,6.38]
[1736794119570,2.844,175.89,175.82,9.2249]
[1736794119771,2.844,175.89,175.82,6.38]
[1736794119964,3.3797,175.94,175.82,6.38]
[1736794120666,3.3797,175.94,175.82,9.2249]
[1736794120872,22.3757194,175.92,175.82,6.38]
[1736794121871,3.3797,175.94,175.82,6.38]
[1736794122071,2.8442,175.88,175.83,2.8449]
[1736794122274,3.3797,175.94,175.8,22.3757194]
[1736794122467,3.3797,175.94,175.81,6.38]
[1736794123972,22.3757194,175.98,175.83,22.3757194]
[1736794124167,22.3757194,175.98,175.83,213.3757194]
[1736794124769,2.8436,175.91,175.85,2.8444]
[1736794125772,2.8436,175.91,175.86,2.8444]
[1736794126262,2.8434,175.93,175.83,213.3757194]
[1736794126672,2.8441,175.89,175.83,213.3757194]
[1736794126873,22.3757194,175.95,175.84,2.8447]
[1736794127174,22.3757194,175.95,175.83,191.0]
[1736794127375,2.8439,175.89,175.84,2.8447]
[1736794127570,22.3757194,175.95,175.83,191.0]
[1736794127766,22.3757194,175.98,175.83,191.0]
[1736794127971,1.5865,176.0,175.86,22.3757194]
[1736794128174,2.8429,175.96,175.91,2.8435]
[1736794128770,2.8423,175.99,175.94,2.8431]
[1736794129071,3.2331,176.02,175.9,6.38]
[1736794129781,22.3757194,176.01,175.9,6.38]
[1736794130176,3.2331,176.02,175.9,6.38]
[1736794130577,22.3757194,176.04,175.9,6.38]
[1736794130782,25.6959194,176.07,175.92,22.3757194]
[1736794131174,2.8426,175.98,175.93,2.8433]
[1736794131678,2.8429,175.96,175.92,2.8434]
[1736794131883,22.3757194,176.04,175.9,6.38]
[1736794132379,22.3757194,176.04,175.92,2.8434]
[1736794132577,22.3757194,176.04,175.9,6.38]
[1736794132778,22.3757194,176.01,175.9,6.38]
[1736794133179,1.6494,176.0,175.9,6.38]
[1736794133984,1.6494,176.0,175.92,2.8434]
[1736794134183,6.38,176.03,175.9,6.38]
[1736794134781,6.38,176.03,175.93,2.8432]
[1736794135182,6.38,176.03,175.9,6.38]
[1736794135784,6.38,176.03,175.9,9.2236]
[1736794136379,2.8431,175.95,175.9,9.2236]
[1736794136782,6.38,176.03,175.9,9.2236]
[1736794136983,2.8432,175.94,175.9,2.8436]
[1736794137280,6.38,176.03,175.84,2.8447]
[1736794137281,22.3757194,175.96,175.84,2.8447]
[1736794137483,3.4157,175.95,175.83,191.0]
[1736794137686,4.9966,175.95,175.83,191.0]
[1736794137881,4.9966,175.95,175.83,213.3757194]
[1736794139182,3.4157,175.95,175.83,213.3757194]
[1736794139488,22.3757194,175.99,175.83,213.3757194]
[1736794140587,2.8436,175.92,175.87,2.8441]
[1736794140785,22.3757194,175.99,175.83,213.3757194]
[1736794141389,22.3757194,175.99,175.84,6.38]
[1736794141686,2.8439,175.9,175.86,2.8444]
[1736794141982,22.3757194,175.99,175.86,22.3757194]
[1736794142189,4.9293,176.02,175.89,213.3757194]
[1736794142488,22.3757194,176.05,175.9,3.3601]
[1736794142686,22.3757194,176.05,175.91,6.38]
[1736794143085,22.3757194,176.05,175.92,22.3757194]
[1736794143282,4.789,176.07,175.92,22.3757194]
[1736794143487,4.789,176.07,175.97,2.8425]
[1736794143683,4.789,176.07,175.92,22.3757194]
[1736794143884,2.8419,176.02,175.92,22.3757194]
[1736794144084,4.789,176.07,175.92,22.3757194]
[1736794144687,4.789,176.07,175.97,2.8425]
[1736794144887,4.789,176.07,175.92,22.3757194]
[1736794145288,2.842,176.02,175.98,2.8424]
[1736794145691,2.8421,176.01,175.98,6.38]
[1736794146393,2.8419,176.02,175.98,9.2224]
[1736794146790,22.3757194,176.08,175.98,6.38]
[1736794146992,2.8409,176.08,175.98,28.7557194]
[1736794147193,4.9624,176.12,175.98,28.7557194]
[1736794147194,4.9624,176.12,175.99,3.2993]
[1736794147685,2.8412,176.06,175.99,3.2993]
[1736794147988,2.8412,176.06,176.02,2.8417]
[1736794148489,2.8412,176.06,176.03,2.8417]
[1736794148691,4.9624,176.12,176.03,2.8417]
[1736794148904,2.8411,176.07,176.03,2.8417]
[1736794149091,2.8411,176.07,176.03,9.2217]
[1736794149492,4.9624,176.12,176.03,6.38]
[1736794149493,3.2985,176.12,176.03,6.38]
[1736794149686,22.3757194,176.17,176.03,6.38]
[1736794150288,2.8412,176.07,176.03,9.2217]
[1736794151791,2.8412,176.07,176.03,6.38]
[1736794152090,2.8412,176.07,176.04,2.8415]
[1736794152588,2.8412,176.07,176.03,9.2216]
[1736794153994,2.8412,176.07,176.03,6.38]
[1736794154188,22.3757194,176.17,176.03,6.38]
[1736794154790,2.8407,176.1,176.06,2.8412]
[1736794155387,22.3757194,176.17,176.03,6.38]
[1736794155693,2.84,176.13,176.09,2.8406]
[1736794156092,2.8399,176.14,176.07,22.3757194]
[1736794156995,2.8399,176.14,176.1,2.8404]
[1736794157293,4.998,176.18,176.1,6.38]
[1736794157494,3.3341,176.18,176.1,6.38]
[1736794157687,22.3757194,176.23,176.1,28.7557194]
[1736794157995,5.0479,176.25,176.1,28.7557194]
[1736794158296,22.3757194,176.23,176.1,28.7557194]
[1736794159487,5.0479,176.25,176.1,28.7557194]
[1736794159789,5.0479,176.25,176.13,22.3757194]
[1736794159997,22.3757194,176.29,176.14,1.708]
[1736794160490,22.3757194,176.29,176.16,22.3757194]
[1736794160692,5.0195,176.3,176.17,9.8121]
[1736794160885,5.0195,176.3,176.19,22.3757194]
[1736794161798,3.2839,176.3,176.19,22.3757194]
[1736794161989,22.3757194,176.35,176.19,22.3757194]
[1736794162190,2.8376,176.29,176.24,2.8382]
[1736794162393,2.8376,176.29,176.19,22.3757194]
[1736794162895,2.8376,176.29,176.24,2.8381]
[1736794163091,1.7422,176.34,176.24,6.36]
[1736794163292,2.837,176.32,176.25,22.3757194]
[1736794163489,3.1688,176.36,176.25,22.3757194]
[1736794163694,1.5775,176.36,176.26,5.1236]
[1736794164088,1.7422,176.38,176.26,5.1236]
[1736794164290,22.3757194,176.41,176.28,22.3757194]
[1736794164691,22.3757194,176.41,176.31,2.8371]
[1736794164987,1.5775,176.42,176.31,9.1971]
[1736794165190,1.5775,176.42,176.31,6.36]
[1736794165394,1.5913,176.43,176.31,28.7357194]
[1736794165594,1.5976,176.46,176.34,22.3757194]
[1736794165999,1.5976,176.46,176.37,2.836]
[1736794166000,2.8355,176.42,176.37,2.836]
[1736794166895,1.5976,176.46,176.34,22.3757194]
[1736794167088,2.8359,176.39,176.34,2.8367]
[1736794167291,1.5976,176.46,176.34,22.3757194]
[1736794167486,1.5976,176.46,176.37,22.3757194]
[1736794167701,1.5976,176.46,176.38,6.36]
[1736794168191,4.4324,176.46,176.41,2.8355]
[1736794168587,1.5976,176.46,176.38,6.36]
[1736794169192,2.8351,176.44,176.38,6.36]
[1736794169399,1.5976,176.46,176.38,6.36]
[1736794169699,2.8359,176.4,176.38,6.36]
[1736794171694,22.3757194,176.44,176.31,191.0]
[1736794171895,1.5928,176.43,176.31,191.0]
[1736794172398,2.8363,176.37,176.31,193.8371]
[1736794172996,2.8368,176.34,176.3,6.36]
[1736794173193,1.5928,176.43,176.3,6.36]
[1736794173394,22.3757194,176.41,176.28,23.9974194]
[1736794173701,1.615,176.4,176.28,23.9974194]
[1736794173999,22.3757194,176.38,176.25,22.3757194]
[1736794174197,22.3757194,176.38,176.24,103.82]
[1736794174400,2.8376,176.29,176.24,106.6582]
[1736794174599,1.6626,176.37,176.24,103.82]
[1736794174801,1.6626,176.37,176.25,22.3757194]
[1736794175000,2.8367,176.34,176.25,25.7361194]
[1736794175305,1.6626,176.37,176.25,25.7361194]
[1736794175801,1.615,176.4,176.28,22.3757194]
[1736794176202,1.5928,176.43,176.31,22.3757194]
[1736794176392,1.5928,176.43,176.25,3.3604]
[1736794176393,1.6976,176.47,176.34,22.3757194]
[1736794176793,2.8357,176.4,176.36,2.8363]
[1736794177595,2.836,176.39,176.33,4.4906]
[1736794177792,1.6057,176.46,176.33,1.6539]
[1736794178193,2.8358,176.4,176.34,2.8365]
[1736794178591,1.6057,176.46,176.33,1.6539]
[1736794178999,1.6057,176.46,176.35,2.8365]
[1736794179198,1.6057,176.46,176.33,1.6539]
[1736794179398,2.8354,176.43,176.35,2.8365]
[1736794179593,1.6057,176.46,176.35,2.8365]
[1736794179903,1.6057,176.46,176.35,36.12541832]
[1736794180204,1.6057,176.46,176.39,2.8358]
[1736794180701,1.6976,176.47,176.39,2.8358]
[1736794181199,2.8353,176.43,176.39,2.8358]
[1736794181397,2.8353,176.43,176.34,1.636]
[1736794181398,1.6626,176.48,176.4,2.8356]
[1736794181599,1.6626,176.48,176.39,6.36]
[1736794181800,1.5891,176.52,176.41,36.12541832]
[1736794182001,1.5891,176.52,176.42,1.5771]
[1736794182704,2.8345,176.48,176.42,1.5771]
[1736794183006,3.2759,176.55,176.46,2.8347]
[1736794183600,2.8341,176.5,176.45,2.8349]
[1736794183902,3.2759,176.55,176.45,2.8349]
[1736794184102,3.2759,176.55,176.43,3.3121]
[1736794184304,36.12541832,176.53,176.42,1.5771]
[1736794184807,2.8344,176.48,176.43,2.8351]
[1736794185712,3.2759,176.55,176.42,1.5771]
[1736794185713,2.8343,176.49,176.44,2.8349]
[1736794185909,2.8343,176.49,176.42,4.9016]
[1736794186201,36.12541832,176.61,176.47,36.12541832]
[1736794186408,1.6669,176.59,176.48,6.36]
[1736794186709,2.8338,176.53,176.48,9.1943]
[1736794188808,2.8338,176.53,176.49,2.8342]
[1736794189414,36.12541832,176.58,176.48,6.36]
[1736794189614,36.12541832,176.58,176.42,4.9016]
[1736794189807,36.12541832,176.55,176.42,11.2616]
[1736794190008,36.12541832,176.55,176.42,1.5771]
[1736794190214,36.12541832,176.52,176.4,6.36]
[1736794190513,3.2802,176.51,176.4,6.36]
[1736794191310,1.696,176.51,176.41,36.12541832]
[1736794191512,2.8345,176.48,176.41,40.58911832]
[1736794191712,36.12541832,176.55,176.41,37.75371832]
[1736794192012,1.5842,176.56,176.44,2.8349]
[1736794192013,2.8339,176.52,176.44,2.8349]
[1736794192212,1.696,176.56,176.44,36.12541832]
[1736794193209,1.696,176.56,176.45,38.90777559]
[1736794193411,1.696,176.56,176.45,36.07307559]
[1736794193610,2.8338,176.52,176.43,2.8352]
[1736794193811,1.696,176.56,176.43,2.8352]
[1736794194017,1.696,176.56,176.42,39.31647559]
[1736794194319,1.696,176.56,176.45,2.8349]
[1736794194818,2.8343,176.5,176.45,2.8349]
[1736794195023,1.696,176.56,176.44,2.835]
[1736794195217,1.696,176.56,176.42,39.31647559]
[1736794195520,2.8346,176.48,176.43,9.1952]
[1736794195917,2.8346,176.48,176.43,45.27929085]
[1736794196117,1.696,176.56,176.43,45.27929085]
[1736794196520,36.08409085,176.55,176.43,6.36]
[1736794196716,36.08409085,176.52,176.42,1.5918]
[1736794197021,6.36,176.55,176.42,1.5918]
[1736794197022,2.8344,176.49,176.42,4.4271]
[1736794197221,1.6816,176.51,176.42,1.5918]
[1736794197722,1.6816,176.51,176.4,42.44409085]
[1736794198321,2.8353,176.43,176.4,42.44409085]
[1736794198517,1.6816,176.51,176.4,42.44409085]
[1736794199316,1.6816,176.51,176.4,6.36]
[1736794199921,2.8354,176.43,176.4,6.36]
[1736794200514,1.6816,176.51,176.4,6.36]
[1736794200719,1.6816,176.51,176.38,310.55674816]
[1736794200918,22.21674816,176.5,176.38,288.34]
[1736794201124,1.6816,176.51,176.34,1.6714]
[1736794201125,22.21674816,176.47,176.34,1.6714]
[1736794201415,22.21674816,176.44,176.3,31.34292949]
[1736794201623,22.21674816,176.41,176.3,31.34292949]
[1736794201921,1.6152,176.4,176.3,31.34292949]
[1736794202118,22.21674816,176.38,176.3,31.34292949]
[1736794202421,2.8372,176.31,176.3,31.34292949]
[1736794202619,2.8372,176.31,176.3,7.83573237]
[1736794202824,2.8379,176.27,176.22,31.79284816]
[1736794203138,1.7109,176.37,176.25,22.21674816]
[1736794203319,2.8369,176.33,176.25,22.21674816]
[1736794203523,1.7109,176.37,176.25,22.21674816]
[1736794204724,1.7109,176.37,176.27,2.8378]
[1736794205124,2.837,176.33,176.27,2.8378]
[1736794205529,2.837,176.33,176.28,2.8376]
[1736794206016,2.837,176.32,176.28,2.8376]
[1736794206217,2.837,176.32,176.27,2.8378]
[1736794206623,1.7109,176.37,176.22,45.72721856]
[1736794206923,1.7109,176.37,176.22,42.20561856]
[1736794207126,2.8369,176.33,176.22,39.36721856]
[1736794207325,1.7109,176.37,176.22,39.36721856]
[1736794207628,2.8382,176.25,176.22,39.36721856]
[1736794207924,1.7109,176.37,176.22,39.36721856]
[1736794207925,36.15111856,176.35,176.22,39.36721856]
[1736794208116,2.8383,176.24,176.22,39.36721856]
[1736794208322,36.15111856,176.32,176.18,97.3]
[1736794208517,36.15111856,176.29,176.18,97.3]
[1736794208724,1.6472,176.28,176.18,97.3]
[1736794208918,1.6472,176.28,176.16,36.15111856]
[1736794209223,36.15111856,176.26,176.14,1.5865]
[1736794209420,1.5814,176.25,176.12,6.36]
[1736794210019,2.8393,176.18,176.12,6.36]
[1736794210219,1.5814,176.25,176.13,36.15111856]
[1736794210422,1.6472,176.28,176.16,36.15111856]
[1736794211319,1.6472,176.28,176.13,36.15111856]
[1736794211516,1.6472,176.28,176.12,6.36]
[1736794211714,1.6472,176.28,176.13,36.15111856]
[1736794211921,1.6472,176.28,176.16,36.15111856]
[1736794212120,2.8381,176.26,176.2,2.8388]
[1736794212319,1.6472,176.28,176.19,42.51111856]
[1736794212715,2.8382,176.25,176.2,2.8389]
[1736794212921,1.6472,176.28,176.19,42.51111856]
[1736794213123,1.6941,176.31,176.19,42.51111856]
[1736794213317,2.8377,176.28,176.2,5.0971]
[1736794213518,1.6941,176.31,176.2,5.0971]
[1736794213825,1.6564,176.34,176.22,36.15111856]
[1736794214127,1.7378,176.36,176.25,36.15111856]
[1736794214326,8.021,176.38,176.26,6.36]
[1736794214526,1.661,176.38,176.26,6.36]
[1736794215728,2.8369,176.33,176.27,2.8378]
[1736794216132,1.661,176.38,176.27,2.8378]
[1736794216333,1.661,176.38,176.26,9.1979]
[1736794216631,1.661,176.38,176.26,6.36]
[1736794217028,2.8373,176.3,176.26,6.36]
[1736794217235,1.661,176.38,176.26,6.36]
[1736794217529,2.8369,176.33,176.27,2.8377]
[1736794217729,2.8369,176.33,176.28,36.15111856]
[1736794218032,36.15111856,176.41,176.28,36.15111856]
[1736794218236,36.15111856,176.41,176.26,6.36]
[1736794218237,2.8372,176.31,176.26,6.36]
[1736794218531,36.15111856,176.38,176.22,324.53111856]
[1736794220834,36.15111856,176.38,176.22,327.36961856]
[1736794221029,36.15111856,176.38,176.22,324.53111856]
[1736794221336,2.8368,176.34,176.22,327.36971856]
[1736794221636,36.15111856,176.38,176.22,327.36971856]
[1736794221836,36.15111856,176.38,176.22,324.53111856]
[1736794223030,36.15111856,176.38,176.22,327.36951856]
[1736794223736,2.8377,176.28,176.23,2.8384]
[1736794224040,36.15111856,176.38,176.22,324.53111856]
[1736794224226,2.8379,176.27,176.22,327.36971856]
[1736794224433,36.15111856,176.41,176.25,36.15111856]
[1736794224633,36.15111856,176.41,176.28,36.15111856]
[1736794224932,2.8366,176.35,176.29,7.9714]
[1736794225132,4.8917,176.43,176.29,7.9714]
[1736794225332,27.13529025,176.43,176.29,7.9714]
[1736794225833,22.24359025,176.4,176.29,7.9714]
[1736794226226,2.8373,176.31,176.29,7.9714]
[1736794226929,22.24359025,176.4,176.29,7.9714]
[1736794227125,27.13529025,176.43,176.29,7.9714]
[1736794227335,0.96268055,176.42,176.29,7.9714]
[1736794227541,2.8369,176.33,176.29,10.8088]
[1736794227835,27.13529025,176.43,176.29,10.8088]
[1736794227836,27.13529025,176.43,176.29,7.9714]
[1736794228027,2.8372,176.31,176.29,7.9714]
[1736794228226,27.13529025,176.43,176.29,7.9714]
[1736794228426,25.50309025,176.43,176.29,7.9714]
[1736794228630,1.7316,176.42,176.29,7.9714]
[1736794230129,1.7316,176.42,176.3,22.24359025]
[1736794230636,3.2595,176.43,176.3,22.24359025]
[1736794230637,1.5839,176.43,176.3,22.24359025]
[1736794231131,2.8357,176.4,176.35,2.8365]
[1736794231637,3.3085,176.47,176.36,28.60359025]
[1736794232540,2.8356,176.41,176.37,1.6979]
[1736794232933,22.24359025,176.55,176.39,22.24359025]
[1736794233127,0.96251009,176.54,176.39,22.24359025]
[1736794233333,2.8341,176.5,176.45,2.8348]
[1736794233532,2.8341,176.5,176.44,6.36]
[1736794233941,2.8339,176.52,176.45,22.24359025]
[1736794234136,27.27759025,176.61,176.45,22.24359025]
[1736794234337,0.9624888,176.6,176.45,22.24359025]
[1736794234738,2.8336,176.53,176.48,2.8344]
[1736794234936,27.27759025,176.61,176.45,22.24359025]
[1736794235138,0.96261664,176.6,176.45,22.24359025]
[1736794235337,0.96261664,176.6,176.47,2.8346]
[1736794235338,2.8337,176.53,176.47,2.8346]
[1736794235636,1.7142,176.6,176.47,2.8346]
[1736794235941,0.96244446,176.59,176.47,2.8346]
[1736794236140,2.8331,176.57,176.47,2.8346]
[1736794236338,1.7142,176.6,176.47,2.8346]
[1736794236841,2.834,176.51,176.46,2.8347]
[1736794237243,2.834,176.51,176.45,22.24359025]
[1736794237844,2.8338,176.52,176.47,2.8346]
[1736794238434,22.24359025,176.58,176.47,1.7406]
[1736794238635,22.24359025,176.58,176.42,22.24359025]
[1736794238636,22.24359025,176.58,176.43,6.36]
[1736794238941,22.24359025,176.52,176.39,5.0771]
[1736794239245,22.24359025,176.49,176.39,3.3432]
[1736794239446,22.24359025,176.49,176.36,103.72]
[1736794240246,22.24359025,176.49,176.35,2.8364]
[1736794240450,22.24359025,176.46,176.34,5.0771]
[1736794240745,22.24359025,176.42,176.28,6.36]
[1736794241042,5.0415,176.41,176.29,2.8374]
[1736794241244,5.0415,176.41,176.28,6.36]
[1736794241944,2.8362,176.38,176.28,6.36]
[1736794242148,5.0415,176.41,176.28,9.1976]
[1736794242447,22.24359025,176.39,176.28,6.36]
[1736794244242,22.24359025,176.39,176.25,1.6026]
[1736794244439,22.24359025,176.35,176.24,1.7401]
[1736794244835,2.8378,176.28,176.24,1.7401]
[1736794245238,2.8372,176.31,176.24,1.7401]
[1736794245444,22.24359025,176.39,176.24,4.5783]
[1736794246049,2.8375,176.3,176.24,4.5783]
[1736794246348,22.24359025,176.39,176.25,22.24359025]
[1736794246538,5.0415,176.41,176.25,22.24359025]
[1736794246742,2.8363,176.37,176.29,2.8374]
[1736794246942,5.0415,176.41,176.29,6.36]
[1736794247343,2.8361,176.38,176.29,6.36]
[1736794247543,5.0415,176.41,176.29,6.36]
[1736794248046,2.8368,176.33,176.29,6.36]
[1736794248646,5.0415,176.41,176.3,2.8372]
[1736794248847,5.0415,176.41,176.3,1.6745]
[1736794249046,22.24359025,176.45,176.31,22.24359025]
[1736794249249,2.8363,176.37,176.31,25.08069025]
[1736794249746,2.8367,176.34,176.31,22.24359025]
[1736794249944,22.24359025,176.42,176.3,1.6745]
[1736794250543,22.24359025,176.45,176.3,1.6745]
[1736794250841,0.96285752,176.44,176.31,22.24359025]
[1736794251044,22.24359025,176.45,176.31,22.24359025]
[1736794251246,0.96308015,176.44,176.31,22.24359025]
[1736794252048,27.19969025,176.48,176.34,22.24359025]
[1736794252240,2.835,176.45,176.36,2.8362]
[1736794252444,4.9561,176.48,176.35,9.6606]
[1736794252648,0.96316391,176.47,176.35,9.6606]
[1736794252844,27.19969025,176.48,176.35,9.6606]
[1736794253343,22.24359025,176.45,176.3,199.0345]
[1736794253549,2.8371,176.32,176.3,1.6745]
[1736794253746,22.24359025,176.39,176.26,3.3115]
[1736794253942,22.24359025,176.39,176.26,4.8825]
[1736794254140,6.36,176.44,176.23,7.83573237]
[1736794254141,22.24359025,176.36,176.23,7.83573237]
[1736794254341,22.24359025,176.33,176.23,7.83573237]
[1736794254543,22.24359025,176.33,176.21,3.2404]
[1736794254749,22.24359025,176.33,176.22,2.8386]
[1736794254943,22.24359025,176.33,176.21,3.2404]
[1736794255347,22.24359025,176.33,176.16,22.24359025]
[1736794255550,36.19803129,176.3,176.16,3.2404]
[1736794255748,2.8393,176.18,176.15,103.7]
[1736794256049,36.19803129,176.24,176.15,97.34]
[1736794256248,36.19803129,176.24,176.12,1.571]
[1736794256449,2.8393,176.18,176.12,1.571]
[1736794259151,36.19803129,176.24,176.12,1.571]
[1736794259356,36.19803129,176.21,176.06,6.36]
[1736794259554,2.8402,176.12,176.06,9.2012]
[1736794259858,36.19803129,176.18,176.05,61.90843157]
[1736794260054,36.19803129,176.18,176.04,8.0006]
[1736794260451,36.19803129,176.15,176.03,191.0]
[1736794260656,36.19803129,176.12,176.01,1.5895]
[1736794260857,2.8413,176.06,176.0,97.38]
[1736794261059,1.5933,176.14,176.0,133.57803129]
[1736794262155,1.5933,176.14,176.03,36.19803129]
[1736794263155,2.8403,176.12,176.04,2.8413]
[1736794263358,1.7419,176.17,176.03,36.19803129]
[1736794263555,1.6861,176.21,176.09,36.19803129]
[1736794263856,2.8389,176.21,176.12,36.19803129]
[1736794264163,36.19803129,176.28,176.12,36.19803129]
[1736794264347,1.6945,176.27,176.12,36.19803129]
[1736794264556,1.6945,176.27,176.1,8.0178]
[1736794264557,1.6945,176.27,176.15,36.19803129]
[1736794264852,3.3259,176.3,176.15,36.19803129]
[1736794265058,1.6861,176.3,176.18,36.19803129]
[1736794265255,1.6861,176.3,176.15,36.19803129]
[1736794265256,1.6861,176.3,176.19,6.36]
[1736794265450,36.19803129,176.28,176.15,36.19803129]
[1736794265765,2.8388,176.21,176.14,9.1999]
[1736794266057,36.19803129,176.28,176.14,9.1999]
[1736794266258,36.19803129,176.25,176.12,36.19803129]
[1736794266457,2.8391,176.19,176.13,9.2]
[1736794266660,36.19803129,176.28,176.15,36.19803129]
[1736794266858,2.838,176.26,176.2,2.8389]
[1736794267054,1.6861,176.3,176.15,36.19803129]
[1736794267360,42.55803129,176.34,176.21,36.19803129]
[1736794267557,42.55803129,176.34,176.23,2.8384]
[1736794267558,2.8375,176.29,176.23,2.8384]
[1736794267761,42.55803129,176.34,176.22,7.9919]
[1736794268063,2.8383,176.24,176.22,6.36]
[1736794268262,95.79606258,176.23,176.03,31.34292949]
[1736794268453,36.19803129,176.1,176.03,31.34292949]
[1736794268652,36.19803129,176.07,176.03,31.34292949]
[1736794268857,36.19803129,176.04,175.93,3.2416]
[1736794269159,36.19803129,175.98,175.9,6.54]
[1736794269363,36.19803129,176.02,175.87,1.6144]
[1736794270064,36.19803129,175.99,175.87,1.6144]
[1736794270462,36.19803129,175.96,175.87,1.6144]
[1736794270966,2.8436,175.92,175.87,1.6144]
[1736794271166,2.8436,175.92,175.86,6.56]
[1736794272063,36.19803129,175.96,175.86,6.56]
[1736794272064,2.8438,175.9,175.86,6.56]
[1736794272267,36.19803129,175.96,175.86,6.56]
[1736794272465,2.8434,175.93,175.86,9.4044]
[1736794272866,2.8434,175.93,175.86,6.56]
[1736794273962,36.19803129,175.96,175.86,6.56]
[1736794274170,37.78773129,175.99,175.86,6.56]
[1736794274362,36.19803129,175.99,175.86,6.56]
[1736794274558,2.8426,175.98,175.91,2.8436]
[1736794274769,36.19803129,175.99,175.91,2.8436]
[1736794274962,1.7001,176.0,175.86,6.56]
[1736794276170,2.8427,175.97,175.91,2.8435]
[1736794276365,1.7001,176.0,175.86,6.56]
[1736794276566,1.633,176.01,175.86,6.56]
[1736794276567,6.52,176.08,175.88,36.19803129]
[1736794276875,36.19803129,176.05,175.88,36.19803129]
[1736794277564,2.8421,176.01,175.94,2.843]
[1736794278974,36.19803129,176.02,175.93,6.52]
[1736794279972,36.19803129,176.05,175.93,6.52]
[1736794280366,2.8422,176.0,175.95,2.8429]
[1736794280567,36.19803129,176.05,175.93,6.52]
[1736794280763,2.8428,175.96,175.93,6.52]
[1736794280970,2.8428,175.96,175.88,197.54]
[1736794281367,36.19803129,176.02,175.88,233.73803129]
[1736794281562,36.19803129,176.04,175.88,233.73803129]
[1736794281563,36.19803129,176.04,175.91,36.19803129]
[1736794281767,36.19803129,176.04,175.92,1.6186]
[1736794281975,36.19803129,176.04,175.96,2.8427]
[1736794281976,2.842,176.02,175.96,2.8427]
[1736794282167,36.19803129,176.04,175.96,2.8427]
[1736794283169,36.19803129,176.04,175.94,6.54]
[1736794283367,1.7073,176.08,175.94,42.73803129]
[1736794283874,1.7073,176.08,175.98,2.8424]
[1736794284067,1.7073,176.08,175.95,6.52]
[1736794284273,2.8409,176.08,175.97,36.19803129]
[1736794284468,2.8409,176.08,176.0,2.8421]
[1736794284667,2.8407,176.09,176.0,36.19803129]
[1736794284867,3.424,176.11,176.0,36.19803129]
[1736794285067,3.424,176.11,176.01,1.7219]
[1736794285470,1.6881,176.11,176.01,1.7219]
[1736794285687,36.19803129,176.16,176.02,42.71803129]
[1736794286075,36.19803129,176.13,176.01,1.7219]
[1736794286291,1.6087,176.12,176.01,1.7219]
[1736794286577,36.19803129,176.16,176.02,36.19803129]
[1736794286868,2.8402,176.12,176.02,36.19803129]
[1736794287073,37.80673129,176.19,176.05,36.19803129]
[1736794287266,37.80673129,176.19,176.1,2.8404]
[1736794287464,37.80673129,176.19,176.08,6.54]
[1736794288069,2.8399,176.14,176.08,6.54]
[1736794288270,37.80673129,176.19,176.08,6.54]
[1736794288473,37.80673129,176.19,176.08,9.3808]
[1736794288774,37.80673129,176.19,176.08,6.54]
[1736794289278,2.8402,176.13,176.03,6.54]
[1736794289474,1.6087,176.19,176.05,36.19803129]
[1736794289977,36.19803129,176.18,176.05,36.19803129]
[1736794290373,1.6087,176.19,176.05,36.19803129]
[1736794290883,36.19803129,176.18,176.03,6.54]
[1736794291073,36.19803129,176.18,176.05,36.19803129]
[1736794291268,1.6087,176.19,176.05,36.19803129]